bitfinex/quotes_SOLUSD_20230116
["timestamp","ask_amount","ask_price","bid_price","bid_amount"]
[1673851636699,20.0,24.519,24.467,20.0]
[1673851636700,20.0,24.519,24.474,21.46196354]
[1673851636912,20.0,24.519,24.476,23.8629803]
[1673851637120,20.0,24.519,24.448,20.0]
[1673851637121,18.96,24.49,24.448,20.0]
[1673851637332,18.82,24.5,24.454,23.8629803]
[1673851637750,18.82,24.5,24.455,20.0]
[1673851637963,18.82,24.5,24.45,18.96]
[1673851638300,18.92,24.49,24.44,19.08]
[1673851638710,20.0,24.489,24.44,43.70226922]
[1673851638926,20.0,24.489,24.44,19.08]
[1673851639132,20.0,24.489,24.441,20.0]
[1673851639452,20.0,24.489,24.44,19.08]
[1673851639648,20.0,24.479,24.44,19.08]
[1673851640089,20.0,24.479,24.441,21.46196354]
[1673851640293,20.0,24.479,24.442,20.0]
[1673851640607,20.0,24.487,24.45,18.92]
[1673851640804,20.0,24.487,24.451,20.0]
[1673851641227,20.0,24.487,24.45,18.92]
[1673851642077,20.0,24.489,24.451,20.0]
[1673851642296,132.575,24.504,24.46,18.91]
[1673851642715,132.575,24.504,24.461,44.14334354]
[1673851643137,132.575,24.504,24.462,21.46196354]
[1673851643347,132.575,24.504,24.47,18.92]
[1673851643546,112.575,24.504,24.47,18.92]
[1673851643756,20.0,24.503,24.471,20.0]
[1673851643967,20.0,24.503,24.471,41.46196354]
[1673851644177,20.0,24.503,24.472,21.46196354]
[1673851644704,20.0,24.503,24.47,18.92]
[1673851644910,20.0,24.509,24.47,18.92]
[1673851645236,114.532,24.544,24.49,18.93]
[1673851645237,111.904,24.539,24.49,18.93]
[1673851645465,111.904,24.539,24.5,18.92]
[1673851645760,114.532,24.544,24.501,20.0]
[1673851646080,114.532,24.544,24.502,2.67689]
[1673851646296,114.532,24.557,24.51,18.96]
[1673851646503,114.532,24.57,24.51,94.65]
[1673851646504,0.0026,24.533,24.51,94.65]
[1673851646711,0.0026,24.533,24.524,1.0]
[1673851646913,0.0026,24.533,24.521,20.0]
[1673851646914,0.0026,24.533,24.525,2.67438]
[1673851647127,0.0026,24.533,24.525,124.25119936]
[1673851647338,0.0026,24.533,24.526,47.56872999]
[1673851647553,0.0090657,24.552,24.527,2.67417]
[1673851647764,114.9292,24.609,24.54,19.06]
[1673851648090,114.9292,24.609,24.528,147.6]
[1673851648091,18.96,24.58,24.53,18.96]
[1673851648290,2.75452,24.579,24.527,47.29494337]
[1673851648697,20.0,24.578,24.52,18.84]
[1673851648902,18.89,24.56,24.51,18.96]
[1673851649113,18.96,24.54,24.51,55.21801134]
[1673851649371,18.96,24.54,24.48,75.85]
[1673851649372,20.0,24.529,24.481,40.82]
[1673851649540,20.0,24.529,24.48,18.92]
[1673851649742,20.0,24.529,24.481,2.67919]
[1673851650584,20.0,24.529,24.491,20.0]
[1673851651640,20.0,24.529,24.487,23.64137005]
[1673851651964,20.0,24.529,24.483,20.0]
[1673851652176,20.0,24.529,24.484,23.64137005]
[1673851652706,20.0,24.529,24.485,20.0]
[1673851653124,2.75452,24.528,24.486,23.64137005]
[1673851653338,2.75452,24.528,24.487,20.0]
[1673851653545,2.75452,24.528,24.485,20.0]
[1673851653757,20.0,24.519,24.47,18.96]
[1673851654507,20.0,24.519,24.472,21.71618272]
[1673851654711,20.0,24.519,24.473,20.0]
[1673851655032,22.75452,24.519,24.474,21.71618272]
[1673851655237,20.0,24.519,24.474,33.20752497]
[1673851655441,22.75452,24.519,24.474,21.71618272]
[1673851655648,22.75452,24.519,24.47,38.96]
[1673851655865,22.75452,24.519,24.47,20.0]
[1673851655866,2.75452,24.518,24.47,20.0]
[1673851656078,20.0,24.509,24.466,21.71618272]
[1673851656287,20.0,24.509,24.462,20.0]
[1673851656288,20.0,24.509,24.467,21.71618272]
[1673851656486,18.89,24.5,24.459,21.46196354]
[1673851656698,18.89,24.5,24.453,20.0]
[1673851656699,18.89,24.5,24.464,37.832868]
[1673851656925,18.89,24.5,24.46,2.68149]
[1673851657137,18.89,24.5,24.461,37.832868]
[1673851657328,18.89,24.49,24.461,37.832868]
[1673851658185,20.0,24.499,24.461,37.832868]
[1673851658186,18.96,24.48,24.461,37.832868]
[1673851658380,18.81,24.49,24.461,37.832868]
[1673851658590,18.81,24.49,24.462,20.0]
[1673851659021,18.81,24.49,24.462,51.86947529]
[1673851659236,18.81,24.49,24.454,20.0]
[1673851659441,18.96,24.48,24.454,23.62284938]
[1673851659640,18.96,24.48,24.431,20.0]
[1673851659850,18.96,24.48,24.444,21.46196354]
[1673851660077,18.96,24.48,24.444,24.14521354]
[1673851660277,18.93,24.47,24.434,22.46110629]
[1673851660487,18.93,24.47,24.434,25.14544629]
[1673851660488,20.0,24.469,24.434,25.14544629]
[1673851660906,18.93,24.47,24.435,42.46110629]
[1673851661234,18.96,24.48,24.436,84.10147178]
[1673851661442,19.11,24.5,24.437,130.28402]
[1673851661658,20.0,24.499,24.439,127.6]
[1673851661852,20.0,24.499,24.441,20.0]
[1673851662056,18.81,24.49,24.442,2.68347]
[1673851662276,18.81,24.49,24.444,20.0]
[1673851662491,66.33180791,24.489,24.445,20.0]
[1673851662823,18.96,24.51,24.46,18.91]
[1673851663004,111.368,24.516,24.47,18.96]
[1673851663214,111.368,24.516,24.471,22.68029]
[1673851663533,18.82,24.53,24.48,18.82]
[1673851663737,19.11,24.54,24.5,18.82]
[1673851663947,18.93,24.55,24.501,2.677]
[1673851664156,18.93,24.55,24.501,151.73896354]
[1673851664376,21.46196354,24.555,24.502,62.68521749]
[1673851664596,20.0,24.554,24.503,22.67679]
[1673851664792,75.84,24.58,24.503,22.67679]
[1673851664793,30.31469485,24.559,24.53,18.93]
[1673851665003,18.79,24.58,24.531,2.67373]
[1673851665222,18.93,24.57,24.532,20.0]
[1673851665433,20.0,24.579,24.533,130.27351]
[1673851665651,18.81,24.59,24.54,18.93]
[1673851665860,18.81,24.59,24.541,2.67264]
[1673851666080,18.81,24.59,24.542,20.0]
[1673851666282,18.81,24.59,24.543,2.67242]
[1673851666494,20.0,24.619,24.56,75.99]
[1673851666709,99.4090657,24.64,24.589,2.0]
[1673851666917,99.4090657,24.64,24.59,2.66731]
[1673851667134,99.4090657,24.64,24.59,24.12927354]
[1673851667314,99.4090657,24.64,24.591,52.09469617]
[1673851667525,99.4090657,24.64,24.592,22.6671]
[1673851667755,99.4090657,24.64,24.593,2.66699]
[1673851667968,99.4090657,24.64,24.61,18.93]
[1673851668163,99.4090657,24.64,24.611,2.66504]
[1673851668376,99.4090657,24.64,24.612,2.66493]
[1673851668582,99.4090657,24.64,24.611,72.03145309]
[1673851668583,99.4090657,24.64,24.611,42.09923143]
[1673851668791,118.3690657,24.64,24.611,42.09923143]
[1673851669006,20.0,24.639,24.581,20.0]
[1673851669212,18.81,24.62,24.593,39.51131805]
[1673851669649,20.0,24.619,24.58,75.67]
[1673851669850,20.0,24.619,24.6,18.92]
[1673851670056,20.0,24.639,24.61,18.96]
[1673851670273,20.0,24.639,24.601,32.64808232]
[1673851670683,107.7423308,24.625,24.59,18.82]
[1673851670895,96.72178842,24.623,24.57,18.85]
[1673851671110,37.05889561,24.629,24.572,2.66927]
[1673851671111,55.04378135,24.625,24.572,2.66927]
[1673851671333,55.04378135,24.625,24.602,20.0]
[1673851671334,18.93,24.61,24.602,20.0]
[1673851671758,94.77,24.61,24.602,20.0]
[1673851671955,94.77,24.61,24.54,18.9]
[1673851672156,18.96,24.58,24.571,19.79251]
[1673851672581,18.96,24.58,24.561,20.0]
[1673851672898,18.82,24.57,24.561,20.0]
[1673851673103,18.82,24.57,24.52,19.0]
[1673851673315,18.81,24.56,24.53,20.0]
[1673851673731,52.93156227,24.58,24.53,38.96]
[1673851673937,18.81,24.57,24.53,20.0]
[1673851674499,20.0,24.579,24.53,20.0]
[1673851674500,20.0,24.579,24.534,22.62557641]
[1673851674703,20.0,24.579,24.535,2.67329]
[1673851674917,75.69,24.56,24.535,20.0]
[1673851675127,18.91,24.55,24.535,20.0]
[1673851675325,2.75452,24.549,24.53,20.0]
[1673851675531,18.92,24.54,24.511,20.0]
[1673851675859,18.96,24.53,24.511,20.0]
[1673851676071,18.91,24.52,24.483,20.0]
[1673851676265,78.57452,24.54,24.484,2.47849337]
[1673851676266,18.89,24.53,24.484,2.47849337]
[1673851676475,105.96289561,24.54,24.537,33.6796301]
[1673851676476,18.92,24.54,24.537,33.6796301]
[1673851676686,94.75,24.55,24.537,33.6796301]
[1673851676908,20.0,24.549,24.537,0.0096301]
[1673851677342,36.70218537,24.547,24.537,0.0096301]
[1673851677744,36.70218537,24.547,24.488,2.67843]
[1673851677967,18.89,24.52,24.488,2.67843]
[1673851678373,18.82,24.53,24.489,21.46196354]
[1673851678578,18.82,24.53,24.49,2.67821]
[1673851678796,18.96,24.52,24.49,2.67821]
[1673851679003,18.96,24.52,24.486,20.0]
[1673851679249,18.96,24.52,24.486,22.67864]
[1673851679446,18.96,24.52,24.488,20.17187394]
[1673851679753,18.96,24.52,24.45,18.92]
[1673851679754,18.82,24.51,24.45,18.92]
[1673851679963,20.0,24.529,24.44,19.08]
[1673851679964,18.96,24.49,24.44,19.08]
[1673851680369,18.96,24.49,24.441,20.0]
[1673851680788,18.96,24.5,24.45,18.91]
[1673851681101,19.14,24.52,24.485,2.67875]
[1673851681315,20.0,24.519,24.485,85.27303421]
[1673851681635,20.0,24.519,24.486,65.81188431]
[1673851681849,20.0,24.519,24.486,38.24436344]
[1673851682066,20.0,24.519,24.487,38.24436344]
[1673851682260,20.0,24.519,24.488,20.0]
[1673851682469,19.14,24.52,24.488,20.0]
[1673851682791,20.0,24.529,24.489,22.67832]
[1673851683007,20.0,24.529,24.49,2.67821]
[1673851683202,20.0,24.529,24.49,24.14017354]
[1673851683412,20.0,24.529,24.491,61.46196354]
[1673851683623,18.96,24.52,24.491,21.46196354]
[1673851683851,18.81,24.51,24.489,38.24436344]
[1673851684059,18.96,24.52,24.489,38.24436344]
[1673851684273,18.96,24.52,24.49,20.0]
[1673851684468,20.0,24.529,24.491,2.6781]
[1673851684996,20.0,24.529,24.492,19.30310436]
[1673851685209,20.0,24.529,24.494,20.0]
[1673851685528,20.0,24.529,24.495,2.67766]
[1673851685723,18.79,24.54,24.496,20.0]
[1673851685930,18.79,24.54,24.497,2.67744]
[1673851686160,18.96,24.53,24.497,2.67744]
[1673851686370,18.82,24.55,24.498,127.6]
[1673851686585,20.0,24.549,24.5,20.0]
[1673851686784,20.0,24.549,24.502,127.6]
[1673851687008,20.0,24.549,24.503,2.67679]
[1673851687217,20.0,24.539,24.503,65.13461879]
[1673851687426,18.92,24.53,24.503,58.23234277]
[1673851687635,18.92,24.53,24.503,20.0]
[1673851687839,18.92,24.53,24.496,21.46196354]
[1673851688044,18.91,24.52,24.481,20.0]
[1673851688255,18.96,24.51,24.498,38.23234277]
[1673851688487,18.96,24.51,24.464,20.0]
[1673851689854,17.46,24.5,24.464,41.46196354]
[1673851690167,18.96,24.51,24.465,41.3867279]
[1673851690366,18.96,24.51,24.466,2.68083]
[1673851690573,20.0,24.509,24.466,2.68083]
[1673851690783,18.81,24.5,24.466,2.68083]
[1673851690998,18.81,24.5,24.458,81.68763964]
[1673851690999,18.96,24.49,24.458,81.68763964]
[1673851691209,18.96,24.51,24.468,20.0]
[1673851691426,20.0,24.519,24.469,2.6805]
[1673851691621,20.0,24.519,24.469,24.14246354]
[1673851691837,20.0,24.519,24.47,20.0]
[1673851692048,18.81,24.51,24.471,2.68029]
[1673851692268,20.0,24.509,24.471,2.68029]
[1673851692468,18.82,24.5,24.471,2.68029]
[1673851692682,18.82,24.5,24.461,39.92476436]
[1673851692987,18.82,24.5,24.462,2.68127]
[1673851693195,20.0,24.509,24.462,152.19936769]
[1673851693416,20.0,24.509,24.463,61.68763964]
[1673851693632,20.0,24.509,24.465,20.0]
[1673851693827,20.0,24.509,24.466,2.68083]
[1673851694038,20.0,24.509,24.466,24.14279354]
[1673851694261,20.0,24.509,24.467,21.46196354]
[1673851694472,20.0,24.509,24.467,24.14268354]
[1673851694695,20.0,24.509,24.468,20.0]
[1673851694995,20.0,24.509,24.468,21.46196354]
[1673851694996,18.96,24.5,24.468,21.46196354]
[1673851695191,20.0,24.499,24.469,21.91809769]
[1673851695398,20.0,24.499,24.46,21.46196354]
[1673851695729,20.0,24.509,24.47,21.46196354]
[1673851695935,20.0,24.509,24.471,2.68029]
[1673851696258,18.92,24.51,24.472,86.54154566]
[1673851696472,18.93,24.5,24.472,105.59945094]
[1673851696679,18.93,24.5,24.45,18.85]
[1673851696893,20.0,24.519,24.474,127.6]
[1673851697096,20.0,24.519,24.475,2.67985]
[1673851697302,20.0,24.519,24.475,40.50076877]
[1673851697514,20.0,24.519,24.476,59.28288231]
[1673851697723,20.0,24.519,24.477,43.49963]
[1673851697930,20.0,24.519,24.479,127.6]
[1673851698136,20.0,24.519,24.482,20.0]
[1673851698348,18.82,24.52,24.484,127.6]
[1673851698573,20.0,24.528,24.486,127.6]
[1673851698892,18.96,24.51,24.487,2.67853]
[1673851699105,18.96,24.51,24.461,20.0]
[1673851699309,18.96,24.51,24.474,22.67996]
[1673851699521,18.96,24.51,24.475,2.67985]
[1673851699840,20.0,24.519,24.475,2.67985]
[1673851700152,18.91,24.53,24.482,127.6]
[1673851700366,18.91,24.53,24.484,127.6]
[1673851700554,18.91,24.53,24.486,127.6]
[1673851700765,18.91,24.53,24.488,127.6]
[1673851700975,41.46196354,24.539,24.496,127.6]
[1673851701203,20.0,24.549,24.5,18.9]
[1673851701514,112.8321,24.557,24.51,18.85]
[1673851701731,112.8321,24.557,24.512,127.6]
[1673851701942,18.92,24.55,24.514,127.6]
[1673851702129,18.92,24.55,24.515,22.67548]
[1673851702451,18.92,24.55,24.515,2.67548]
[1673851702657,18.92,24.55,24.516,26.44390548]
[1673851703088,20.0,24.549,24.514,20.0]
[1673851703832,18.92,24.54,24.511,20.0]
[1673851704145,13.92,24.54,24.511,20.0]
[1673851704360,13.92,24.54,24.506,69.35]
[1673851704361,18.96,24.52,24.506,69.35]
[1673851705492,187.62523138,24.606,24.54,61.91169067]
[1673851705700,74.83775997,24.65,24.567,72.42735732]
[1673851705912,74.83775997,24.65,24.568,130.2697]
[1673851705913,184.82407029,24.631,24.568,130.2697]
[1673851706139,184.82407029,24.631,24.61,20.0]
[1673851706338,74.83775997,24.65,24.611,2.66504]
[1673851706549,74.83775997,24.65,24.611,24.12700354]
[1673851706767,74.83775997,24.65,24.612,76.13509357]
[1673851706961,74.83775997,24.65,24.6,19.06]
[1673851707175,2.75452,24.623,24.581,20.0]
[1673851707392,37.83963168,24.612,24.56,18.98]
[1673851707600,18.89,24.6,24.55,18.96]
[1673851707812,18.96,24.59,24.533,21.46]
[1673851708022,18.96,24.58,24.534,20.0]
[1673851708249,18.96,24.58,24.567,0.00735732]
[1673851708458,94.65,24.58,24.567,0.00735732]
[1673851708651,18.79,24.58,24.567,0.00735732]
[1673851708857,20.0,24.598,24.567,0.00735732]
[1673851709840,18.96,24.59,24.567,0.00735732]
[1673851710149,20.0,24.589,24.567,0.00735732]
[1673851710566,52.99849382,24.589,24.567,0.00735732]
[1673851710788,20.0,24.589,24.567,0.00735732]
[1673851711608,18.94,24.62,24.57,18.96]
[1673851712037,20.0,24.629,24.58,18.96]
[1673851712237,32.39182715,24.617,24.581,20.0]
[1673851712450,20.0,24.616,24.572,20.0]
[1673851712778,18.69,24.6,24.567,0.00735732]
[1673851712977,18.73,24.59,24.567,0.00735732]
[1673851713402,18.69,24.58,24.567,0.00735732]
[1673851713616,20.0,24.579,24.567,0.00735732]
[1673851714973,20.0,24.579,24.531,20.0]
[1673851715185,18.76,24.58,24.534,274.8]
[1673851715402,20.0,24.587,24.541,20.0]
[1673851716017,20.0,24.579,24.541,20.0]
[1673851716227,18.8,24.57,24.541,20.0]
[1673851716435,132.5743,24.579,24.541,20.0]
[1673851716748,112.5743,24.579,24.542,21.46196354]
[1673851716969,112.5743,24.579,24.544,40.82]
[1673851717382,112.5743,24.579,24.548,40.82]
[1673851718030,20.0,24.578,24.548,40.82]
[1673851718222,18.71,24.57,24.548,40.82]
[1673851718438,20.0,24.569,24.548,40.82]
[1673851718647,20.0,24.569,24.534,40.82]
[1673851718871,20.0,24.569,24.536,40.82]
[1673851719275,18.8,24.56,24.536,40.82]
[1673851719488,18.8,24.55,24.536,40.82]
[1673851719700,18.8,24.56,24.536,40.82]
[1673851719927,20.0,24.569,24.534,40.82]
[1673851720459,20.0,24.569,24.535,20.0]
[1673851720671,18.8,24.56,24.534,40.82]
[1673851722659,18.8,24.56,24.535,20.0]
[1673851722855,20.0,24.569,24.535,20.0]
[1673851723400,18.73,24.56,24.534,40.82]
[1673851723714,20.0,24.569,24.533,21.46]
[1673851723715,20.0,24.577,24.535,80.82]
[1673851724238,132.5743,24.579,24.536,62.28196354]
[1673851724456,132.5743,24.579,24.54,18.8]
[1673851724457,112.5743,24.579,24.54,18.8]
[1673851724642,114.5349,24.596,24.55,18.8]
[1673851724846,114.5349,24.596,24.552,20.0]
[1673851725162,114.5349,24.596,24.554,40.82]
[1673851725371,18.83,24.6,24.556,20.0]
[1673851725578,18.8,24.61,24.56,18.73]
[1673851725792,18.8,24.61,24.562,20.0]
[1673851726020,18.8,24.61,24.562,60.82]
[1673851726230,20.0,24.619,24.57,18.8]
[1673851726549,20.0,24.619,24.572,20.0]
[1673851726765,18.8,24.61,24.573,37.0]
[1673851726962,2.75452,24.615,24.573,37.0]
[1673851727286,110.8473,24.622,24.581,40.82]
[1673851727479,110.8473,24.622,24.582,17.0]
[1673851727682,110.8473,24.622,24.583,20.0]
[1673851727896,20.0,24.621,24.584,37.0]
[1673851728336,20.0,24.621,24.585,20.0]
[1673851728532,110.8473,24.622,24.584,37.0]
[1673851728736,25.20387226,24.63,24.59,18.73]
[1673851728950,20.0,24.639,24.591,20.0]
[1673851729272,27.25820628,24.633,24.59,23.61226574]
[1673851729484,35.85521015,24.623,24.567,127.6]
[1673851729693,20.0,24.609,24.56,18.66]
[1673851729908,20.0,24.609,24.562,21.46196354]
[1673851729909,18.76,24.6,24.562,21.46196354]
[1673851730109,18.61,24.59,24.541,20.0]
[1673851730437,118.8663,24.589,24.543,127.6]
[1673851730633,33.95241072,24.589,24.546,168.42]
[1673851730832,18.6,24.6,24.547,2.67199]
[1673851731046,18.76,24.59,24.547,2.67199]
[1673851731257,74.98,24.6,24.547,2.67199]
[1673851731258,18.76,24.58,24.547,2.67199]
[1673851731695,18.76,24.58,24.549,20.0]
[1673851732133,20.0,24.589,24.549,20.0]
[1673851732329,22.75452,24.589,24.549,20.0]
[1673851732542,18.85,24.58,24.549,20.0]
[1673851732750,18.85,24.58,24.55,20.0]
[1673851732965,2.75452,24.589,24.55,20.0]
[1673851733176,20.0,24.596,24.551,169.06196354]
[1673851733386,20.0,24.596,24.552,20.0]
[1673851733707,18.85,24.59,24.552,20.0]
[1673851733925,18.85,24.59,24.52,75.26]
[1673851733926,18.8,24.56,24.51,18.85]
[1673851734233,18.8,24.56,24.5,18.87]
[1673851734234,2.75452,24.559,24.5,18.87]
[1673851734449,18.85,24.55,24.5,18.87]
[1673851734639,21.60452,24.55,24.51,68.63505417]
[1673851734853,51.28392658,24.558,24.534,127.6]
[1673851735061,18.8,24.58,24.534,127.6]
[1673851735270,20.0,24.579,24.535,20.0]
[1673851735481,20.0,24.579,24.54,18.73]
[1673851735706,20.0,24.579,24.541,20.0]
[1673851736027,20.0,24.579,24.541,41.46196354]
[1673851736231,20.0,24.582,24.543,20.0]
[1673851736448,20.0,24.582,24.544,20.0]
[1673851736639,20.0,24.582,24.545,20.0]
[1673851736848,20.0,24.582,24.546,20.0]
[1673851737058,20.0,24.582,24.547,20.0]
[1673851737394,20.0,24.582,24.548,20.0]
[1673851737789,113.092,24.583,24.55,18.85]
[1673851738004,18.88,24.6,24.55,18.85]
[1673851738224,18.85,24.61,24.56,18.85]
[1673851738435,18.85,24.61,24.561,20.0]
[1673851738628,119.9758,24.596,24.562,147.6]
[1673851738842,118.8663,24.599,24.57,18.67]
[1673851739053,118.8663,24.599,24.571,20.0]
[1673851739277,65.6043105,24.611,24.572,168.42]
[1673851739606,65.6043105,24.611,24.58,18.67]
[1673851739909,18.85,24.61,24.571,20.0]
[1673851740119,20.0,24.609,24.562,20.0]
[1673851740325,20.0,24.609,24.57,40.31196354]
[1673851740538,20.0,24.609,24.57,18.85]
[1673851740745,20.0,24.609,24.571,21.46196354]
[1673851741066,20.0,24.609,24.562,20.0]
[1673851741067,20.0,24.609,24.563,21.46196354]
[1673851741272,20.0,24.609,24.564,20.0]
[1673851741689,20.0,24.609,24.565,42.92392708]
[1673851741929,20.0,24.609,24.566,20.0]
[1673851742627,20.0,24.609,24.564,20.0]
[1673851742846,20.0,24.609,24.55,18.85]
[1673851742847,18.85,24.59,24.55,18.85]
[1673851743058,18.85,24.6,24.54,18.73]
[1673851743277,2.75452,24.608,24.55,2.67166]
[1673851743820,18.85,24.6,24.551,127.6]
[1673851744020,14.23875023,24.599,24.552,20.0]
[1673851744639,111.8826,24.598,24.55,18.69]
[1673851744860,20.0,24.597,24.55,146.29]
[1673851745272,18.85,24.59,24.547,44.41798879]
[1673851745480,20.0,24.597,24.502,68.29326807]
[1673851745481,94.22,24.56,24.502,68.29326807]
[1673851745713,2.75452,24.559,24.502,68.29326807]
[1673851745901,2.75452,24.559,24.5,18.85]
[1673851746105,20.0,24.559,24.51,18.85]
[1673851746315,20.0,24.559,24.52,18.85]
[1673851746541,18.85,24.59,24.54,18.69]
[1673851746763,112.7467,24.596,24.55,18.67]
[1673851746764,20.0,24.589,24.55,18.67]
[1673851747382,29.03579036,24.588,24.541,20.0]
[1673851747593,22.75452,24.587,24.541,20.0]
[1673851747805,18.85,24.58,24.542,20.0]
[1673851748021,18.85,24.58,24.531,20.0]
[1673851748225,20.0,24.579,24.532,20.0]
[1673851748435,20.0,24.579,24.534,20.0]
[1673851748647,18.85,24.56,24.5,75.42]
[1673851748855,18.85,24.56,24.5,18.85]
[1673851748856,18.85,24.55,24.5,18.85]
[1673851749072,18.85,24.55,24.506,196.95]
[1673851749366,2.75452,24.559,24.51,18.67]
[1673851749573,20.0,24.557,24.511,20.0]
[1673851749785,54.67422367,24.557,24.511,20.0]
[1673851750102,18.85,24.54,24.506,69.35]
[1673851750432,34.67422367,24.539,24.506,69.35]
[1673851750622,20.0,24.538,24.506,69.35]
[1673851751364,18.85,24.53,24.506,69.35]
[1673851751570,18.85,24.52,24.506,69.35]
[1673851751786,2.75452,24.519,24.47,18.85]
[1673851752005,18.85,24.52,24.47,18.85]
[1673851752006,18.85,24.52,24.471,2.68029]
[1673851752205,18.85,24.52,24.47,165.98075231]
[1673851752417,18.85,24.52,24.471,20.0]
[1673851752617,18.85,24.51,24.471,20.0]
[1673851752953,18.85,24.51,24.461,20.0]
[1673851752954,56.78218274,24.51,24.461,20.0]
[1673851753149,20.0,24.499,24.461,20.0]
[1673851753580,18.82,24.5,24.461,20.0]
[1673851753774,20.0,24.508,24.461,20.0]
[1673851754006,118.26922,24.509,24.461,20.0]
[1673851754196,115.5147,24.509,24.48,18.85]
[1673851754535,115.5147,24.509,24.47,18.85]
[1673851754944,115.5147,24.509,24.47,18.35]
[1673851755263,115.5147,24.509,24.471,20.0]
[1673851755481,20.0,24.508,24.471,20.0]
[1673851755672,51.55092637,24.508,24.462,2.68127]
[1673851755886,88.66786177,24.508,24.46,18.85]
[1673851756089,20.0,24.506,24.46,18.85]
[1673851756311,18.85,24.5,24.458,20.0]
[1673851756535,20.0,24.499,24.458,20.0]
[1673851756844,58.24360207,24.499,24.458,20.0]
[1673851757036,20.0,24.499,24.461,41.46196354]
[1673851757247,20.0,24.499,24.45,18.67]
[1673851757461,18.85,24.49,24.442,20.0]
[1673851757675,18.85,24.48,24.442,20.0]
[1673851758404,18.85,24.48,24.444,20.0]
[1673851758829,18.85,24.47,24.442,20.0]
[1673851759049,18.85,24.47,24.431,20.0]
[1673851759244,39.0482674,24.469,24.431,20.0]
[1673851759452,20.0,24.468,24.431,20.0]
[1673851759874,20.0,24.468,24.423,20.0]
[1673851759875,18.85,24.46,24.423,20.0]
[1673851760525,50.8244517,24.459,24.423,20.0]
[1673851760835,18.85,24.45,24.4,18.8]
[1673851761049,108.2713,24.449,24.4,18.8]
[1673851761237,20.0,24.448,24.402,20.0]
[1673851761655,20.0,24.448,24.395,37.7594455]
[1673851761656,18.85,24.44,24.395,37.7594455]
[1673851762412,18.85,24.44,24.397,20.0]
[1673851763027,108.2713,24.449,24.398,47.26605652]
[1673851763342,108.2713,24.449,24.397,20.0]
[1673851763343,108.2713,24.449,24.411,20.0]
[1673851763769,20.0,24.448,24.401,20.0]
[1673851763981,20.0,24.448,24.402,25.80409298]
[1673851764189,20.0,24.448,24.397,20.0]